fUSD/lending_fUSD_20240420
["ID","MTS","AMOUNT","RATE_DAILY","PERIOD"]
[323026009,1713600664789,-3967.38,0.00015616,2]
[323026010,1713600664799,-555.06,0.00015616,2]
[323026011,1713600664809,-3663.8,0.00015616,2]
[323026012,1713600664822,-500.0,0.00015616,2]
[323026013,1713600664832,-500.0,0.00015616,2]
[323026014,1713600664842,-630.83,0.00015616,2]
[323026015,1713600664852,-1885.64,0.00015616,2]
[323026016,1713600664862,-4670.67,0.00015616,2]
[323026017,1713600664877,-1862.52,0.00015616,2]
[323026018,1713600664891,-500.0,0.00015616,2]
[323026019,1713600664901,-19004.64,0.00015616,2]
[323026020,1713600664912,-5684.91,0.00015616,2]
[323026021,1713600664922,-1467.84,0.00015616,2]
[323026022,1713600664931,-500.0,0.00015616,2]
[323026023,1713600664941,-500.0,0.00015616,2]
[323026024,1713600664950,-607.66,0.00015616,2]
[323026025,1713600664961,-1430.21,0.00015616,2]
[323026026,1713600664971,-500.0,0.00015616,2]
[323026027,1713600664980,-3118.09,0.00015616,2]
[323026028,1713600664989,-516.39,0.00015616,2]
[323026029,1713600665000,-500.0,0.00015616,2]
[323026030,1713600665009,-500.0,0.00015616,2]
[323026031,1713600665019,-8458.72,0.00015616,2]
[323026032,1713600665028,-500.0,0.00015616,2]
[323026033,1713600665038,-500.0,0.00015616,2]
[323026034,1713600665048,-500.0,0.00015616,2]
[323026035,1713600665058,-746.62,0.00015616,2]
[323026036,1713600665071,-500.0,0.00015616,2]
[323026037,1713600665081,-500.0,0.00015616,2]
[323026038,1713600665091,-860.47,0.00015616,2]
[323026039,1713600665101,-501.38,0.00015616,2]
[323026040,1713600665110,-861.39,0.00015616,2]
[323026041,1713600665121,-1353.66,0.00015616,2]
[323026042,1713600665131,-500.0,0.00015616,2]
[323026043,1713600665140,-500.0,0.00015616,2]
[323026044,1713600665150,-2371.31,0.00015616,2]
[323026045,1713600665160,-2454.99,0.00015616,2]
[323026046,1713600665169,-500.0,0.00015616,2]
[323026047,1713600665178,-500.0,0.00015616,2]
[323026048,1713600665188,-500.0,0.00015616,2]
[323026049,1713600665198,-500.0,0.00015616,2]
[323026050,1713600665208,-692.9,0.00015616,2]
[323026051,1713600665217,-500.0,0.00015616,2]
[323026052,1713600665227,-539.0,0.00015617,2]
[323026053,1713600665236,-88844.31614443,0.0001562,2]
[323026054,1713600665246,-150.0,0.00015641,2]
[323026055,1713600665256,-40000.0,0.00015644,2]
[323026056,1713600665265,-5388.46901384,0.0001567,2]
[323026057,1713600665275,-328.0,0.00015689,2]
[323026058,1713600665284,-186.37642869,0.00015697,2]
[323026059,1713600665294,-60000.0,0.000157,2]
[323026060,1713600665303,-2871.85961764,0.00015788,2]
[323026061,1713600665315,-2344.37649804,0.00015798,2]
[323026062,1713600665326,-57616.98000709,0.000158,2]
[323026063,1713600666788,-994.52,0.000158,2]
[323026064,1713600666801,-1511.30272506,0.000158,2]
[323026065,1713600666847,-500.0,0.00015342,2]
[323026066,1713600666856,-1873.41,0.00015342,2]
[323026067,1713600666866,-47348.7404,0.000158,2]
[323026068,1713600666891,-1286.64134782,0.000158,2]
[323026069,1713600666930,-1500.81668461,0.000158,2]
[323026070,1713600667496,-327.69405024,0.00015068,2]
[323026071,1713600667522,-172.54671984,0.00015068,2]
[323026072,1713600667532,-792.66,0.00015068,2]
[323026073,1713600667542,-792.66,0.00015342,2]
[323026074,1713600667551,-500.0,0.00015616,2]
[323026075,1713600667561,-1873.41,0.00015616,2]
[323026076,1713600667575,-792.66,0.00015616,2]
[323026077,1713600667585,-364.05609879,0.000158,2]
[323026078,1713600667626,-72606.11722139,0.000158,2]
[323026079,1713600667638,-409.27231372,0.000158,2]
[323026080,1713600668650,-338.72698102,0.00015068,2]
[323026081,1713600669709,-385.40562752,0.00015067,2]
[323026082,1713600669732,-3026.66149794,0.00015067,2]
[323026083,1713600669741,-161.27301898,0.00015068,2]
[323026084,1713600669750,-500.0,0.00015068,2]
[323026085,1713600669760,-500.0,0.00015342,2]
[323026086,1713600669769,-500.0,0.00015342,2]
[323026087,1713600669779,-418.94,0.00015605,2]
[323026088,1713600669788,-500.0,0.00015616,2]
[323026089,1713600669798,-500.0,0.00015616,2]
[323026090,1713600669811,-55142.7024872,0.000158,2]
[323026091,1713600669821,-500.0,0.000158,2]
[323026092,1713600669830,-174.85,0.00015831,2]
[323026093,1713600669840,-167.72,0.00015831,2]
[323026094,1713600669850,-167.98,0.00015831,2]
[323026095,1713600669859,-170.92,0.00015831,2]
[323026096,1713600669869,-5388.46901384,0.00015846,2]
[323026097,1713600669879,-296.69,0.00015878,2]
[323026098,1713600669891,-300.67338635,0.00015879,2]
[323026099,1713600669900,-31785.79463669,0.00015879,2]
[323026100,1713600669912,-38298.26889852,0.00015879,2]
[323026101,1713600669923,-69314.86104878,0.0001588,2]
[323026102,1713600669935,-6101.00000004,0.0001588,2]
[323026103,1713600669947,-999.02301719,0.0001588,2]
[323026104,1713600669959,-639.278,0.0001588,2]
[323026105,1713600669971,-587.95100004,0.0001588,2]
[323026106,1713600669990,-982.45050727,0.0001588,2]
[323026107,1713600670010,-585.38807398,0.0001588,2]
[323026108,1713600670024,-623.31083077,0.0001588,2]
[323026109,1713600670036,-770.15400364,0.0001588,2]
[323026110,1713600670048,-406.07954183,0.0001588,2]
[323026111,1713600670060,-191665.528,0.0001588,2]
[323026112,1713600770758,-152.0,0.00022968,30]
[323026113,1713600770785,-152.0,0.00023112,31]
[323026114,1713600770809,-152.0,0.00023256,32]
[323026115,1713600770837,-152.0,0.000234,33]
[323026116,1713600770880,-501.0,0.00025,30]
[323026117,1713600770910,-228447.7213252,0.000255,30]
[323026118,1713600770951,-213.18715427,0.0002739,30]
[323026119,1713600785009,300.0,0.00028,120]
[323026120,1713600875007,1039.28747172,0.00014999,5]
[323026121,1713600891598,300.0,0.00028,120]
[323026123,1713601267897,295.15,0.00010839,2]
[323026124,1713601278554,179.74805329,0.00011125,2]
[323026125,1713601410382,-238.75003197,0.00011201,2]
[323026126,1713601411786,-150.0,0.00011201,2]
[323026127,1713601412357,-150.0,0.00011201,2]
[323026128,1713601413474,-150.0,0.00011201,2]
[323026129,1713601424183,-98.14512321,0.00011201,2]
[323026130,1713601424204,-51.85487679,0.00011201,2]
[323026131,1713601424861,-150.0,0.00011201,2]
[323026132,1713601425417,-150.0,0.00011201,2]
[323026133,1713601426839,-150.0,0.00011201,2]
[323026134,1713601427337,-150.0,0.00011201,2]
[323026135,1713601428117,-150.0,0.00011201,2]
[323026136,1713601428698,-150.0,0.00011201,2]
[323026137,1713601429232,-150.0,0.00011201,2]
[323026138,1713601429909,-150.0,0.00011201,2]
[323026139,1713601430847,-150.0,0.00011201,2]
[323026140,1713601432241,-150.0,0.00011201,2]
[323026141,1713601432756,-150.0,0.00011201,2]
[323026142,1713601435915,1994.15387109,0.000112,2]
[323026143,1713601441870,173.5,0.00010122,2]
[323026144,1713601453978,-74.23193102,0.00011201,2]
[323026145,1713601454001,-75.76806898,0.00011201,2]
[323026146,1713601454567,-150.0,0.00011201,2]
[323026147,1713601455399,-150.0,0.00011201,2]
[323026148,1713601456851,-150.0,0.00011201,2]
[323026149,1713601458032,-150.0,0.00011201,2]
[323026150,1713601458786,-150.0,0.00011201,2]
[323026151,1713601460997,-150.0,0.00011201,2]
[323026152,1713601461120,683.9495003,0.000112,2]
[323026190,1713601785668,280.39,0.00010418,2]
[323026204,1713601832068,-683.9495003,0.00011207,2]
[323026205,1713601832078,-532.65235782,0.00011212,2]
[323026206,1713601832087,-150.0,0.00011216,2]
[323026207,1713601832096,-150.0,0.00011216,2]
[323026208,1713601832106,-241.25022673,0.00011217,2]
[323026209,1713601832116,-363.42483292,0.00011217,2]
[323026210,1713601832126,-1772.54174572,0.00011217,2]
[323026211,1713601832136,-433.2917384,0.00011218,2]
[323026212,1713601832145,-786.2057769,0.00011218,2]
[323026213,1713601832154,-2036.75555534,0.00011218,2]
[323026214,1713601832164,-11936.59666148,0.00011219,2]
[323026215,1713601832216,-333.13427945,0.00011219,2]
[323026216,1713601832282,-11009.90749401,0.00011219,2]
[323026217,1713601832294,-811.05669613,0.00011219,2]
[323026218,1713601832338,-4075.84388247,0.00011219,2]
[323026219,1713601832349,-756.27288357,0.00011219,2]
[323026220,1713601832397,-15507.58220869,0.00011219,2]
[323026221,1713601832407,-290.95948864,0.00011219,2]
[323026257,1713601838409,-3758.21349065,0.00011206,2]
[323026258,1713601838420,-232018.84562957,0.00011219,2]
[323026259,1713601838430,-490.38,0.0001232,2]
[323026260,1713601838440,-277.77,0.00012333,2]
[323026261,1713601838450,-210.0,0.00012338,2]
[323026262,1713601838460,-150.99,0.0001234,2]
[323026263,1713601838469,-365.67,0.0001234,2]
[323026264,1713601838480,-150.99,0.0001234,2]
[323026265,1713601838490,-240.51,0.0001234,2]
[323026266,1713601838500,-418.11,0.00012343,2]
[323026267,1713601838510,-372.19,0.00012359,2]
[323026268,1713601838521,-1821.43,0.00012395,2]
[323026269,1713601838532,-500.0,0.0001241,2]
[323026270,1713601838542,-150.0,0.0001241,2]
[323026271,1713601838553,-211.55,0.00012436,2]
[323026272,1713601838564,-150.99,0.00012436,2]
[323026273,1713601838574,-250.0,0.00012454,2]
[323026274,1713601838586,-9410.09,0.00012635,2]
[323026275,1713601838598,-971.53,0.00012636,2]
[323026276,1713601838611,-190.13,0.00012636,2]
[323026277,1713601838622,-403.2,0.00012642,2]
[323026278,1713601838631,-313.22,0.00012652,2]
[323026279,1713601838642,-487.3,0.00012654,2]
[323026280,1713601838653,-280.39,0.00012682,2]
[323026281,1713601838663,-1003.14,0.00012704,2]
[323026282,1713601838673,-477.38,0.00012753,2]
[323026283,1713601838684,-477.38,0.00012788,2]
[323026284,1713601838694,-477.38,0.00012823,2]
[323026285,1713601838703,-477.38,0.00012858,2]
[323026286,1713601838713,-477.38,0.00012893,2]
[323026287,1713601838723,-2070.9049646,0.000129,2]
[323026288,1713601838732,-171.56,0.00012901,2]
[323026289,1713601838741,-477.38,0.00012928,2]
[323026290,1713601838752,-477.38,0.00012963,2]
[323026291,1713601838761,-477.38,0.00012998,2]
[323026292,1713601838770,-2070.9049646,0.00013017,2]
[323026293,1713601838782,-477.38,0.00013033,2]
[323026294,1713601838792,-477.38,0.00013068,2]
[323026295,1713601838801,-477.38,0.00013103,2]
[323026296,1713601838811,-477.38,0.00013138,2]
[323026297,1713601838820,-477.38,0.00013173,2]
[323026298,1713601838829,-477.38,0.00013208,2]
[323026299,1713601838839,-176.22,0.0001322,2]
[323026300,1713601838849,-477.38,0.00013243,2]
[323026301,1713601838859,-477.38,0.00013278,2]
[323026302,1713601838868,-477.38,0.00013313,2]
[323026303,1713601838877,-477.38,0.00013348,2]
[323026304,1713601838886,-167.29,0.0001336,2]
[323026305,1713601838895,-477.38,0.00013383,2]
[323026306,1713601838904,-477.38,0.00013418,2]
[323026307,1713601838913,-500.0,0.00013425,2]
[323026308,1713601838924,-596.8,0.00013479,2]
[323026309,1713601838934,-2070.9049646,0.00013497,2]
[323026310,1713601838943,-499.99,0.00013539,2]
[323026311,1713601838952,-243.9954998,0.00013559,2]
[323026312,1713601838962,-183.81215809,0.00013559,2]
[323026313,1713601838972,-156.19509503,0.00013559,2]
[323026314,1713601838981,-200.0,0.00013601,2]
[323026315,1713601838990,-442.6009,0.00013671,2]
[323026316,1713601839000,-500.0,0.00013698,2]
[323026317,1713601839009,-990.71,0.00013699,2]
[323026318,1713601839018,-500.0,0.00013699,2]
[323026319,1713601839029,-724.97,0.00013699,2]
[323026320,1713601839038,-158.09,0.00013699,2]
[323026321,1713601839047,-500.0,0.00013972,2]
[323026322,1713601839056,-2070.9049646,0.00013978,2]
[323026323,1713601839065,-211.55,0.0001399,2]
[323026324,1713601839074,-403.2,0.00014222,2]
[323026325,1713601839083,-376.94772311,0.00014246,2]
[323026326,1713601839092,-167.22,0.00014313,2]
[323026327,1713601839101,-2070.9049646,0.00014458,2]
[323026328,1713601839111,-20899.48,0.00014504,2]
[323026329,1713601839120,-538.0,0.00014658,2]
[323026330,1713601839129,-8130.2164,0.0001468,2]
[323026331,1713601839139,-3676.8773,0.0001468,2]
[323026332,1713601839148,-163.4826,0.0001468,2]
[323026333,1713601839158,-33728.39811849,0.00014763,2]
[323026334,1713601839167,-163.5,0.0001477,2]
[323026335,1713601839176,-224.46183848,0.0001477,2]
[323026336,1713601839185,-4406.01803981,0.00014778,2]
[323026337,1713601839195,-782.86413307,0.00014778,2]
[323026338,1713601839204,-6620.20474409,0.00014778,2]
[323026339,1713601839214,-1302.01131147,0.00014778,2]
[323026340,1713601839222,-4750.12059232,0.00014778,2]
[323026341,1713601839233,-155.0,0.00014779,2]
[323026342,1713601839242,-2344.37649804,0.00014779,2]
[323026343,1713601839254,-16207.29197354,0.00014779,2]
[323026344,1713601839265,-319.1355,0.0001478,2]
[323026345,1713601839276,-245000.0,0.0001478,2]
[323026346,1713601839286,-820.5231,0.0001478,2]
[323026347,1713601839297,-500.0,0.0001478,2]
[323026348,1713601839306,-7500.0,0.00014867,2]
[323026349,1713601839316,-418.94,0.00014878,2]
[323026350,1713601839325,-6008.09210948,0.000149,2]
[323026351,1713601839333,-2070.9049646,0.00014939,2]
[323026352,1713601839343,-280.39,0.00014946,2]
[323026353,1713601839352,-1000.0,0.00014967,2]
[323026354,1713601839362,-10000.0,0.00014967,2]
[323026355,1713601839371,-383.22825436,0.00014968,2]
[323026356,1713601839380,-6583.337863,0.00014968,2]
[323026357,1713601839389,-572.66752851,0.00014968,2]
[323026358,1713601839398,-163.5,0.0001499,2]
[323026359,1713601839407,-300.0,0.00014999,2]
[323026360,1713601839417,-5000.0,0.00015,2]
[323026361,1713601839426,-280476.3763389,0.00015,2]
[323026362,1713601839438,-479945.00876247,0.00015,2]
[323026363,1713601839461,-4756.280333,0.00015,2]
[323026416,1713601843167,-401.18031974,0.00015,2]
[323026424,1713601843225,-842.56313245,0.00015,2]
[323026426,1713601843346,-659.55849175,0.00015,2]
[323026427,1713601843357,-456.79121804,0.00015,2]
[323026428,1713601843368,-603.2361818,0.00015,2]
[323026468,1713601846340,-180.21956279,0.000149,2]
[323026470,1713601846350,-1939.9650932,0.00015,2]
[323026472,1713601846438,-412.61700007,0.00015,2]
[323026473,1713601846449,-2659.2951,0.00015,2]
[323026474,1713601847012,-591500.2446741,0.00015,2]
[323026475,1713601847047,-3523.33871929,0.00015,2]
[323026488,1713602054863,519.0,0.000112,2]
[323026492,1713602064765,810.0,0.000112,2]
[323026506,1713602226910,3000.0,0.000112,2]
[323026508,1713602647346,-1788.03645257,0.00012049,2]
[323026509,1713602647373,-252.35,0.0001205,2]
[323026510,1713602770008,239.73,0.00011679,2]
[323026521,1713603032598,-251.52363247,0.00013482,2]
[323026522,1713603032609,-811.95198835,0.00013483,2]
[323026531,1713603038316,-1488.86329916,0.00013483,2]
[323026532,1713603038328,-1369.29431586,0.00013483,2]
[323026533,1713603038482,-5223.52039663,0.00013483,2]
[323026534,1713603038492,-758.08,0.00013541,2]
[323026535,1713603038501,-151.39,0.00013597,2]
[323026536,1713603038510,-162.98514866,0.00013599,2]
[323026537,1713603038520,-1213.61,0.00013645,2]
[323026538,1713603038531,-171.43,0.00013663,2]
[323026539,1713603038540,-158.09,0.00013699,2]
[323026540,1713603038550,-167.29,0.00013831,2]
[323026541,1713603038559,-241.92,0.00013874,2]
[323026542,1713603038569,-150.0,0.00013905,2]
[323026543,1713603038579,-689.77,0.00013905,2]
[323026544,1713603038589,-239.73,0.00013943,2]
[323026545,1713603038598,-2250.0,0.00014,2]
[323026546,1713603038609,-162.98514866,0.00014033,2]
[323026547,1713603038621,-761.99,0.00014178,2]
[323026548,1713603038632,-167.69,0.00014229,2]
[323026549,1713603038641,-150.0,0.00014247,2]
[323026550,1713603038651,-2440.92,0.00014366,2]
[323026551,1713603038661,-162.98514866,0.00014466,2]
[323026552,1713603038670,-605.256023,0.00014521,2]
[323026553,1713603038680,-150.0,0.00014524,2]
[323026554,1713603038690,-150.0,0.00014752,2]
[323026556,1713603038700,-5071.84337464,0.00014799,2]
[323026558,1713603038709,-25108.66890406,0.000148,2]
[323026559,1713603038735,-376.39552708,0.000148,2]
[323026560,1713603038747,-1882.47346886,0.000148,2]
[323026561,1713603038757,-4432.5444,0.000148,2]
[323026562,1713603038766,-1717.12430956,0.000148,2]
[323026563,1713603038776,-209.8975,0.000148,2]
[323026564,1713603038785,-3681.3596,0.000148,2]
[323026565,1713603038794,-2468.6713,0.000148,2]
[323026566,1713603038803,-1000.0,0.000148,2]
[323026567,1713603038813,-162.16,0.0001481,2]
[323026568,1713603038822,-3000.0,0.0001485,2]
[323026569,1713603038831,-156.07,0.0001489,2]
[323026570,1713603038841,-1377.83909977,0.00014899,2]
[323026571,1713603038850,-26306.2924,0.000149,2]
[323026572,1713603038859,-245000.0,0.000149,2]
[323026573,1713603038868,-1000.0,0.000149,2]
[323026574,1713603038878,-1863.8211,0.000149,2]
[323026575,1713603038887,-500.0,0.000149,2]
[323026576,1713603038896,-162.98514866,0.000149,2]
[323026577,1713603038905,-7500.0,0.000149,2]
[323026578,1713603038915,-10000.0,0.00014968,2]
[323026579,1713603038924,-1000.0,0.00014968,2]
[323026580,1713603038933,-7355.20936294,0.00014968,2]
[323026581,1713603038943,-163.5,0.0001499,2]
[323026582,1713603038952,-219.6549133,0.0001499,2]
[323026583,1713603038962,-174.32406264,0.00014998,2]
[323026584,1713603038971,-167.44367917,0.00014998,2]
[323026585,1713603038981,-19548.12171402,0.00014998,2]
[323026586,1713603038990,-721.10660169,0.00014998,2]
[323026587,1713603039000,-4330.05700395,0.00014998,2]
[323026588,1713603039009,-594.4950471,0.00014998,2]
[323026589,1713603039019,-2353.32137406,0.00014998,2]
[323026590,1713603039029,-684.94443357,0.00014999,2]
[323026591,1713603039040,-212.21332394,0.00014999,2]
[323026592,1713603039050,-295331.1538668,0.00015,2]
[323026593,1713603039060,-5000.0,0.00015,2]
[323026594,1713603039070,-1036.1101169,0.00015,2]
[323026595,1713603039079,-257.9599885,0.00015,2]
[323026596,1713603039088,-1474.54177032,0.00015,2]
[323026597,1713603039097,-255.48454455,0.00015,2]
[323026598,1713603039107,-191.20345887,0.00015,2]
[323026599,1713603039118,-659.003787,0.00015,2]
[323026600,1713603039128,-205.77957528,0.00015,2]
[323026601,1713603039137,-217.45669327,0.00015,2]
[323026602,1713603039147,-3240.0,0.00015,2]
[323026603,1713603039157,-137303.25398329,0.00015,2]
[323026604,1713603039166,-3313.96562417,0.00015,2]
[323026605,1713603039175,-1717.12430949,0.00015059,2]
[323026606,1713603039185,-248.48622623,0.00015066,2]
[323026607,1713603039194,-300.0,0.00015067,2]
[323026608,1713603039203,-300.0,0.00015067,2]
[323026609,1713603039212,-300.0,0.00015067,2]
[323026610,1713603039222,-500.0,0.00015068,2]
[323026611,1713603039231,-500.0,0.00015068,2]
[323026612,1713603039240,-500.0,0.00015068,2]
[323026613,1713603039249,-500.0,0.00015068,2]
[323026614,1713603039258,-165.99476067,0.00015068,2]
[323026615,1713603039268,-500.0,0.00015068,2]
[323026616,1713603039277,-662.39,0.00015068,2]
[323026617,1713603039286,-500.0,0.00015068,2]
[323026618,1713603039295,-500.0,0.00015068,2]
[323026619,1713603039304,-500.0,0.00015068,2]
[323026620,1713603039313,-500.0,0.00015068,2]
[323026621,1713603039322,-500.0,0.00015068,2]
[323026622,1713603039332,-500.0,0.00015068,2]
[323026623,1713603039340,-524.7,0.00015068,2]
[323026624,1713603039350,-500.0,0.00015068,2]
[323026625,1713603039359,-500.0,0.00015068,2]
[323026626,1713603039368,-500.0,0.00015068,2]
[323026627,1713603039377,-500.0,0.00015068,2]
[323026628,1713603039386,-500.0,0.00015068,2]
[323026629,1713603039398,-500.0,0.00015068,2]
[323026630,1713603039408,-761.02,0.00015068,2]
[323026631,1713603039417,-557.19,0.00015068,2]
[323026632,1713603039426,-698.88,0.00015068,2]
[323026633,1713603039436,-500.0,0.00015068,2]
[323026634,1713603039446,-500.0,0.00015068,2]
[323026635,1713603039455,-661.13,0.00015068,2]
[323026636,1713603039465,-500.0,0.00015068,2]
[323026637,1713603039475,-163.33353209,0.00015068,2]
[323026638,1713603039485,-500.0,0.00015068,2]
[323026639,1713603039494,-500.0,0.00015068,2]
[323026640,1713603039504,-500.0,0.00015068,2]
[323026641,1713603039513,-500.0,0.00015068,2]
[323026642,1713603039523,-516.80094974,0.00015068,2]
[323026643,1713603039533,-529.58,0.00015068,2]
[323026644,1713603039543,-224.73016207,0.00015068,2]
[323026645,1713603039553,-500.0,0.00015068,2]
[323026646,1713603039563,-500.0,0.00015068,2]
[323026647,1713603039572,-500.0,0.00015068,2]
[323026648,1713603039581,-500.0,0.00015068,2]
[323026649,1713603039592,-500.0,0.00015068,2]
[323026650,1713603039603,-500.0,0.00015068,2]
[323026651,1713603039617,-500.0,0.00015068,2]
[323026652,1713603039627,-500.0,0.00015068,2]
[323026653,1713603039636,-500.0,0.00015068,2]
[323026654,1713603039646,-429.1823708,0.00015068,2]
[323026655,1713603039656,-500.0,0.00015068,2]
[323026656,1713603039666,-500.0,0.00015068,2]
[323026657,1713603039675,-500.0,0.00015068,2]
[323026658,1713603039686,-500.0,0.00015068,2]
[323026659,1713603039697,-500.0,0.00015068,2]
[323026660,1713603039706,-200.94153497,0.00015068,2]
[323026661,1713603039716,-500.0,0.00015068,2]
[323026662,1713603039726,-500.0,0.00015068,2]
[323026663,1713603039736,-500.0,0.00015068,2]
[323026664,1713603039746,-500.0,0.00015068,2]
[323026665,1713603039756,-638.53,0.00015068,2]
[323026666,1713603039766,-1024.1,0.00015068,2]
[323026667,1713603039776,-500.0,0.00015068,2]
[323026668,1713603039786,-547.28,0.00015068,2]
[323026669,1713603039795,-500.0,0.00015068,2]
[323026670,1713603039804,-500.0,0.00015068,2]
[323026671,1713603039814,-732.91,0.00015068,2]
[323026672,1713603039827,-500.0,0.00015068,2]
[323026673,1713603039839,-500.0,0.00015068,2]
[323026674,1713603039848,-500.0,0.00015068,2]
[323026675,1713603039857,-500.0,0.00015068,2]
[323026676,1713603039866,-500.0,0.00015068,2]
[323026677,1713603039876,-500.0,0.00015068,2]
[323026678,1713603039886,-500.0,0.00015068,2]
[323026679,1713603039896,-500.0,0.00015068,2]
[323026680,1713603039906,-500.0,0.00015068,2]
[323026681,1713603039915,-500.0,0.00015068,2]
[323026682,1713603039924,-646.94,0.00015068,2]
[323026683,1713603039935,-500.0,0.00015068,2]
[323026684,1713603039945,-500.0,0.00015068,2]
[323026685,1713603039958,-500.0,0.00015068,2]
[323026686,1713603039968,-500.0,0.00015068,2]
[323026687,1713603039977,-500.0,0.00015068,2]
[323026688,1713603039987,-454.36501665,0.00015068,2]
[323026689,1713603039997,-500.0,0.00015068,2]
[323026690,1713603040006,-500.0,0.00015068,2]
[323026691,1713603040015,-661.5,0.00015068,2]
[323026692,1713603040025,-500.0,0.00015068,2]
[323026694,1713603040037,-529.98,0.00015068,2]
[323026695,1713603040046,-500.0,0.00015068,2]
[323026696,1713603040056,-836.71,0.00015068,2]
[323026697,1713603040067,-500.0,0.00015068,2]
[323026698,1713603040076,-500.0,0.00015068,2]
[323026699,1713603040087,-500.0,0.00015068,2]
[323026700,1713603040099,-509.73,0.00015068,2]
[323026701,1713603040110,-500.0,0.00015068,2]
[323026702,1713603040120,-500.0,0.00015068,2]
[323026703,1713603040130,-500.0,0.00015068,2]
[323026704,1713603040140,-576.28,0.00015068,2]
[323026705,1713603040150,-500.0,0.00015068,2]
[323026706,1713603040160,-500.0,0.00015068,2]
[323026707,1713603040169,-500.0,0.00015068,2]
[323026708,1713603040179,-500.0,0.00015068,2]
[323026710,1713603040188,-500.0,0.00015068,2]
[323026712,1713603040197,-500.0,0.00015068,2]
[323026714,1713603040207,-500.0,0.00015068,2]
[323026716,1713603040218,-500.0,0.00015068,2]
[323026718,1713603040229,-791.34,0.00015068,2]
[323026720,1713603040239,-500.0,0.00015068,2]
[323026722,1713603040248,-500.0,0.00015068,2]
[323026724,1713603040257,-500.0,0.00015068,2]
[323026726,1713603040268,-797.83,0.00015068,2]
[323026728,1713603040281,-647.19377472,0.00015068,2]
[323026729,1713603040291,-502.80113783,0.00015068,2]
[323026730,1713603040302,-500.0,0.00015068,2]
[323026731,1713603040311,-500.0,0.00015068,2]
[323026732,1713603040324,-500.0,0.00015068,2]
[323026733,1713603040333,-500.0,0.00015068,2]
[323026734,1713603040342,-500.0,0.00015068,2]
[323026735,1713603040353,-509.12,0.00015068,2]
[323026736,1713603040362,-500.0,0.00015068,2]
[323026737,1713603040371,-500.0,0.00015068,2]
[323026738,1713603040381,-500.0,0.00015068,2]
[323026739,1713603040390,-585.88,0.00015068,2]
[323026740,1713603040400,-500.0,0.00015068,2]
[323026741,1713603040409,-561.38,0.00015068,2]
[323026742,1713603040419,-651.15,0.00015068,2]
[323026743,1713603040429,-500.0,0.00015068,2]
[323026744,1713603040438,-500.0,0.00015068,2]
[323026745,1713603040447,-500.0,0.00015068,2]
[323026746,1713603040457,-500.0,0.00015068,2]
[323026747,1713603040466,-500.0,0.00015068,2]
[323026748,1713603040476,-500.0,0.00015068,2]
[323026749,1713603040486,-185.74824588,0.00015068,2]
[323026750,1713603040496,-693.39,0.00015068,2]
[323026751,1713603040506,-500.0,0.00015068,2]
[323026752,1713603040516,-500.0,0.00015068,2]
[323026753,1713603040528,-500.0,0.00015068,2]
[323026754,1713603040539,-500.0,0.00015068,2]
[323026755,1713603040548,-500.0,0.00015068,2]